Cogmind - Beta 15 @@@ ROGUE MODE // 2025.05.13 @ 00:27:43 Player: Windjigo Result: Destroyed by as-87784 with Assembled F-torch Performance ------------- Evolutions (0) 0 Regions Visited (3) 600 Robots Destroyed (22) 110 Value Destroyed (473) 473 Prototype IDs (4) 80 Alien Tech Used (0) 0 Bonus (193) 193 TOTAL SCORE: 1456 Bonus ------- Aligned with FarCom 300 Friendly Fire -107 Cogmind --------- Core Integrity 0/250 Matter 278/300 Energy 41/100 System Corruption 9% Temperature Warm (197) Movement Core (700) Ox13 Location -10/Exiles Parts ------- > --- POWER (1) -------- (None) > --- PROPULSION (2) --- (None) > --- UTILITY (2) ------ Large Storage Unit > --- WEAPON (2) ------- Firepult > --- INVENTORY (15) --- Nuclear Core Light Fission Core Light Treads Heat Sink Large Battery (200) High-capacity Matter Pod (200) Targeting Computer Particle Charger Light Armor Plating Hacking Suite Latent Energy Streamer Grenade Launcher Grenade Launcher Peak State ------------ > --- POWER ------------ Ion Engine > --- PROPULSION ------- Aluminum Leg Titanium Leg > --- UTILITY ---------- Large Storage Unit Seismic Detector > --- WEAPON ----------- Firepult > --- INVENTORY -------- Nuclear Core Light Fission Core Light Treads Heat Sink Large Battery High-capacity Matter Pod Targeting Computer Melee Analysis Suite Particle Charger Light Armor Plating Hacking Suite Latent Energy Streamer Grenade Launcher Grenade Launcher [Rating: 30] Favorites ----------- Power Ion Engine Engine Ion Engine Power Core Fission Core Propulsion Light Treads Treads Light Treads Leg Aluminum Leg Utility Large Storage Unit Device Seismic Detector Storage Large Storage Unit Processor Visual Processing Unit Weapon Medium Laser Energy Gun Medium Laser Energy Cannon Firepult Ballistic Gun Assault Rifle Ballistic Cannon Bore Cannon Launcher Grenade Launcher Special Melee Weapon Datajack Build | -11 -10 -10 -10 ------- Run | Yrd Mat Min Exi Slots Evolved . | . . . . Power . | . . . . Propulsion . | . . . . Utility . | . . . . Weapon . | . . . . Parts Attached 27 | 6 11 8 2 Power 3 | 1 . 2 . Engine 1 | 1 . . . Core 2 | . . 2 . Reactor . | . . . . Propulsion 4 | 2 . 2 . Treads 2 | 2 . . . Leg 2 | . . 2 . Wheel . | . . . . Hover . | . . . . Flight . | . . . . Utility 6 | 1 3 2 . Device 3 | . 1 2 . Storage 2 | 1 1 . . Processor 1 | . 1 . . Hackware . | . . . . Protection . | . . . . Artifact . | . . . . Weapon 14 | 2 8 2 2 Energy Gun 4 | 1 3 . . Energy Cannon 2 | . . . 2 Ballistic Gun 2 | 1 . 1 . Ballistic Cannon 1 | . . 1 . Launcher 4 | . 4 . . Special Weapon . | . . . . Impact Weapon . | . . . . Slashing Weapon . | . . . . Piercing Weapon . | . . . . Special Melee Weapon 1 | . 1 . . Unidentified Prototypes 2 | . . . 2 Parts Lost 9 | . . 5 4 Power 2 | . . 1 1 Propulsion 3 | . . 1 2 Utility 3 | . . 2 1 Weapon 1 | . . 1 . Highest Loss Streak 4 | . . 3 4 To Critical Strikes . | . . . . Average Backups 12 | 2 10 14 14 Power 1 | . 1 . 1 Propulsion 1 | 1 2 1 1 Utility 6 | . 4 7 7 Weapon 3 | . 2 4 3 Tool/Special . | . . . . Unused Backups 12 | . . 2 10 Power 3 | . . 1 2 Propulsion 1 | . . 1 . Utility 8 | . . . 8 Weapon . | . . . . Tool/Special . | . . . . Average Slot Usage (%) 98 | . 99 96 98 Engine 11 | . 14 4 13 Core 2 | . . 9 . Treads 14 | . 27 14 . Leg 13 | . . 13 27 Device 13 | . 13 12 13 Storage 14 | . 14 14 14 Energy Gun 16 | . 20 14 13 Ballistic Gun 3 | . 4 6 . Ballistic Cannon 6 | . . 5 13 Peak Build Rating 30 | 6 8 22 30 Average Rating 12 | 4 7 14 15 On Entrance 5 | . 6 8 9 Naked Turns . | . . . . Heaviest Build 48 | 14 33 42 48 Greatest Support 40 | 40 40 40 27 Greatest Overweight (x) 13 | 1 . 4 13 Average Overweight (x) . | . . . 1 Largest Inventory Capacity 15 | 8 15 15 15 Average Capacity 14 | 7 14 15 15 Most Carried 15 | 6 15 15 15 Average Carried 13 | 2 10 14 14 Final Capacity 15 | 8 15 15 15 Final Carried 15 | 3 14 15 13 Class Distribution -------------------- 100% | Mutant Dominant Class ---------------- Mutant | -10/Materials Mutant | -10/Mines Mutant | -10/Exiles Resources | -11 -10 -10 -10 ----------- Run | Yrd Mat Min Exi Matter Collected 1233 | 179 577 459 18 Remotely . | . . . . Salvage Created 647 | . 479 110 58 Parts 37 | . 34 3 . Haulers Intercepted 1 | . 1 . . Recyclers Shooed . | . . . . Parts Field Recycled . | . . . . Retrieved Matter . | . . . . Parts Self-Destructed . | . . . . Prevented . | . . . . Kills | -11 -10 -10 -10 ------- Run | Yrd Mat Min Exi Combat Hostiles Destroyed 29 | . 16 10 3 Guns 14 | . 7 7 . Cannons 2 | . . 1 1 AOE 13 | . 9 2 2 Classes Destroyed 7 | . 5 2 . Hauler 1 | . 1 . . Recycler 1 | . 1 . . Watcher 2 | . 2 . . Swarmer 7 | . 6 1 . Grunt 10 | . 10 . . Assembled 12 | . . 9 3 Guerrilla 1 | . . 1 . Best Kill Streak 4 | . 4 2 3 Combat Bots Only 3 | . 3 2 3 Max Kills in Single Turn 3 | . 3 2 1 Gunslinging 1 | . 1 1 . Exploded 3 | . 3 2 1 Melee . | . . . . Uniques/NPCs Destroyed . | . . . . Combat | -11 -10 -10 -10 -------- Run | Yrd Mat Min Exi Hostile Shots Fired 138 | . 31 71 36 Missed 36 | . 6 23 7 Hits 102 | . 25 48 29 Melee 9 | . . 5 4 Projectile 93 | . 25 43 25 AOE 3 | . . 3 . Part Disruptions 1 | . . 1 . Damage Taken 1632 | . 320 898 414 Core 258 | . 33 114 111 Absorbed by Shields . | . . . . Regen/Repaired (Parts) 110 | . 110 . . Core Remaining (%) 100 | 100 . . . Volleys Fired 53 | . 19 30 4 Largest 2 | . 2 2 1 Hottest 250 | . 100 100 250 Shots Fired 97 | . 37 56 4 Gun 62 | . 25 37 . Cannon 21 | . . 17 4 Launcher 14 | . 12 2 . Special . | . . . . Kinetic 46 | . 7 39 . Thermal 28 | . 10 15 3 Explosive 14 | . 12 2 . Electromagnetic 9 | . 8 . 1 Robot Hit Streak 6 | . 4 5 6 Robot Miss Streak 8 | . 2 8 1 Penetration Max . | . . . . Secondary Targets 4 | . 2 2 . Max Gunslinging Chain 1 | . 1 1 . Shots Hit Robots 43 | . 16 25 2 Core Hits 58 | . 30 19 9 Critical Kills . | . . . . Critical Parts Destroyed 1 | . . 1 . Critical Strikes 2 | . 1 1 . Burn 1 | . 1 . . Destroy 1 | . . 1 . Melee Attacks . | . . . . Impact . | . . . . Slashing . | . . . . Piercing . | . . . . Sneak Attacks . | . . . . Combat Hostiles . | . . . . Follow-up Attacks . | . . . . Damage Inflicted 1692 | . 972 496 224 Guns 553 | . 189 364 . Cannons 79 | . . 64 15 Explosions 1060 | . 783 68 209 Melee . | . . . . Ramming . | . . . . Kinetic 413 | . 47 366 . Thermal 337 | . 163 62 112 Explosive 752 | . 684 68 . Electromagnetic 190 | . 78 . 112 Impact . | . . . . Slashing . | . . . . Piercing . | . . . . Highest Corruption 9 | . . . 9 Average Corruption 5 | . . . 5 Corruption Purged . | . . . . Corruption Blocked . | . . . . Overload Shots . | . . . . Overflow Damage 40 | . 15 12 13 Projectiles . | . . . . Explosions 40 | . 15 12 13 Melee . | . . . . Knockbacks 2 | . . 2 . Impact . | . . . . Kinetic 2 | . . 2 . Secondary . | . . . . Self-Inflicted Damage 161 | . 62 79 20 Shots 5 | . 2 2 1 Rammed . | . . . . Targets Rammed . | . . . . Kicked . | . . . . Crushed . | . . . . Highest Temperature 286 | . 96 130 286 Average Temperature 53 | . 26 38 139 Received Heat Transfer 305 | . 105 100 100 Siege Activations . | . . . . Martial Activations . | . . . . Shielding Activations . | . . . . Robots Disrupted . | . . . . Combat Hostiles . | . . . . Robots Corrupted . | . . . . Combat Hostiles . | . . . . Parts Fried . | . . . . Impact Corruptions . | . . . . Robots Melted . | . . . . Combat Hostiles . | . . . . Parts Melted . | . . . . Heat Transferred 1344 | . 359 185 800 Parts Sabotaged . | . . . . Parts Stolen . | . . . . Parts Stripped . | . . . . Power Chain Reactions 1 | . 1 . . Latent Energy Used 86 | . . . 86 LE Corruption 2 | . . . 2 Alert | -11 -10 -10 -10 ------- Run | Yrd Mat Min Exi Maximum Alert Level . | . . . . Low Security (%) 100 | 100 100 100 . Level 1 . | . . . . Level 2 . | . . . . Level 3 . | . . . . Level 4 . | . . . . Level 5 . | . . . . High Security . | . . . . Max Security . | . . . . Peak Influence 176 | . 176 51 . Initial 51 | . . 51 . Average 33 | . 56 4 . Influence Increases 562 | . 522 40 . Destroy 0b10 Robot/C 340 | . 320 20 . Destroy 0b10 Robot/NC 20 | . 20 . . Destroy Leader 66 | . 66 . . Successful Hack 6 | . 6 . . Disable Machine 15 | . 15 . . Destroy Structure 115 | . 95 20 . Influence Decreases 562 | . 390 172 . Entered New Map 81 | . . 81 . Time Decay 470 | . 390 80 . Lost Part 11 | . . 11 . Squads Dispatched 5 | . 4 1 . Investigation 4 | . 3 1 . Extermination . | . . . . Reinforcement 1 | . 1 . . Assault . | . . . . Garrison . | . . . . Intercept . | . . . . Searches Triggered . | . . . . Construction Impeded . | . . . . Haulers Reinforced . | . . . . Active Scanning Responses . | . . . . Cargo Convoy Interrupts . | . . . . Stealth | -11 -10 -10 -10 --------- Run | Yrd Mat Min Exi Distress Signals 1 | . 1 . . Communications Jammed . | . . . . Distress Signals . | . . . . Times Spotted 44 | . 23 15 6 Peak Tracking Total 9 | . 3 3 9 Tactical Retreats 2 | . . 2 . Traps | -11 -10 -10 -10 ------- Run | Yrd Mat Min Exi Traps Triggered 2 | . 2 . . Indirectly . | . . . . Trap Hack Attempts . | . . . . Triggered . | . . . . Disarmed . | . . . . Reprogrammed . | . . . . Reused . | . . . . Traps Extracted . | . . . . Installed . | . . . . Triggered . | . . . . Machines | -11 -10 -10 -10 ---------- Run | Yrd Mat Min Exi Machines Disabled 4 | . 1 . 3 Max in Single Turn 2 | . 1 . 2 Machines Repaired . | . . . . Machines Dismantled . | . . . . Machines Sabotaged . | . . . . Overloaded Fab Kills . | . . . . Hacking | -11 -10 -10 -10 --------- Run | Yrd Mat Min Exi Machines Accessed 8 | . 3 1 4 Terminals 1 | . 1 . . Fabricators . | . . . . Repair Stations 1 | . 1 . . Recycling Units 1 | . 1 . . Scanalyzers . | . . . . Garrison Access . | . . . . Total Hacks 61 | . 11 1 49 Successful 56 | . 6 1 49 Failed 5 | . 5 . . Catastrophic . | . . . . Database Lockouts . | . . . . Manual 2 | . . . 2 Terminals 2 | . 2 . . Fabricators . | . . . . Repair Stations 4 | . 4 . . Recycling Units 5 | . 5 . . Scanalyzers . | . . . . Garrison Access . | . . . . Terminal Hacks 51 | . 1 1 49 Record 49 | . . . 49 Prototype ID Bank 1 | . 1 . . Open Door 1 | . . 1 . Fabricator Hacks . | . . . . Repair Station Hacks 2 | . 2 . . Scan Component 1 | . 1 . . Repair 1 | . 1 . . Recycling Unit Hacks 3 | . 3 . . Recycle Component 2 | . 2 . . Process 1 | . 1 . . Scanalyzer . | . . . . Garrison Access Hacks . | . . . . Unauthorized Hacks . | . . . . Terminals . | . . . . Fabricators . | . . . . Repair Stations . | . . . . Recycling Units . | . . . . Scanalyzers . | . . . . Garrison Access . | . . . . Data Cores Recovered . | . . . . Used . | . . . . Hacking Detections 2 | . 2 . . Full Trace Events 1 | . 1 . . Feedback Events . | . . . . Feedback Blocked . | . . . . Robot Schematics Acquired . | . . . . Robots Built . | . . . . Authchips . | . . . . Time . | . . . . Total Robot Build Rating . | . . . . Part Schematics Acquired . | . . . . Parts Built . | . . . . Authchips . | . . . . Time . | . . . . Total Part Build Rating . | . . . . Parts Repaired 1 | . 1 . . Time 26 | . 26 . . Parts Recycled 2 | . 2 . . Recycled Matter 16 | . 16 . . Retrieved Matter . | . . . . Retrieved Components . | . . . . Parts Scanalyzed . | . . . . Part Schematics Acquired . | . . . . Parts Damaged . | . . . . Bothacking | -11 -10 -10 -10 ------------ Run | Yrd Mat Min Exi Used RIF Installer . | . . . . Robots Hacked . | . . . . Non-combat . | . . . . Combat . | . . . . Robot Hacks Applied . | . . . . Relay Couplers Released . | . . . . Fabnet Peak Effective % . | . . . . Robots Rewired . | . . . . Allies Hacked . | . . . . Hacks Repelled . | . . . . Allies | -11 -10 -10 -10 -------- Run | Yrd Mat Min Exi Total Allies . | . . . . Largest Group . | . . . . Highest-Rated Group . | . . . . Highest-Rated Ally . | . . . . Total Orders . | . . . . Ally Attacks . | . . . . Total Damage . | . . . . Kills . | . . . . Allies Corrupted . | . . . . Allies Melted . | . . . . Intel | -11 -10 -10 -10 ------- Run | Yrd Mat Min Exi Active Infowar (turns) 3268 | . 1241 854 1173 Optics 23 | . 23 . . Seismic 3245 | . 1218 854 1173 Robot Analysis Total . | . . . . Derelict Logs Recovered 1 | . . 1 . Drone Launches . | . . . . Drone Recoveries . | . . . . Exploration | -11 -10 -10 -10 ------------- Run | Yrd Mat Min Exi Turns Passed 3464 | 63 1281 937 1183 Spaces Moved 1789 | 41 705 452 591 Core 16 | 15 . . 1 Treads 997 | 26 705 266 . Legs 776 | . . 186 590 Wheels . | . . . . Hover . | . . . . Flight . | . . . . Fastest Speed 50 | 50 160 125 195 Average Speed 174 | 120 160 172 196 Slowest Speed 700 | 160 160 400 700 Overloaded Moves . | . . . . Propulsion Burnouts . | . . . . Robots Hopped . | . . . . Potential Cave-ins . | . . . . Cave-ins Triggered . | . . . . Exploration Rate (%) 63 | 5 92 66 91 Regions Visited 3 Branch Regions 2 Pre-discovered Areas 2 | . . 1 1 Known Exits Taken . | . . . . Unknown Exits Taken 3 | 1 1 1 . Scrap Searched 1 | . . 1 . Spaces Dug . | . . . . Terrain Destroyed 171 | . 127 29 15 Melee . | . . . . Projectile 11 | . . 11 . AOE 160 | . 127 18 15 Terrain Rammed . | . . . . Walls Destroyed . | . . . . Machines Disabled . | . . . . Actions | -11 -10 -10 -10 --------- Run | Yrd Mat Min Exi Total 2037 | 54 813 552 618 Wait 86 | . 42 40 4 Move 1786 | 40 704 451 591 Hop . | . . . . Pick Up 40 | 8 20 7 5 Fast Attach 3 | 1 . 2 . Attach 19 | 5 4 5 5 Detach 4 | . . 3 1 Swap 29 | . 20 8 1 Drop 16 | . 4 6 6 Fire 53 | . 19 30 4 Melee . | . . . . Ram . | . . . . Kick . | . . . . Crush . | . . . . Escape Stasis . | . . . . Rewire 1 | . . . 1 Trap . | . . . . Miscellaneous . | . . . . Route ------- -11/Scrapyard -10/Materials (discovered 5 exits: [*Mat x3] / *Min x2) -10/Mines (discovered 2 exits: [*Mat] / *Exi) -10/Exiles (discovered 1 exit: [*Min]) History --------- Turn | Location | Event 11 | -11/Scrapyard | Discovered new exit (range 14) 64 | -11/Scrapyard | Entered Materials 170 | -10/Materials | Met 8R-AWN 181 | -10/Materials | Discovered new exit (range 8) 304 | -10/Materials | Build established: Mutant 467 | -10/Materials | Discovered new exit (range 15) 617 | -10/Materials | Discovered new exit (range 16) 897 | -10/Materials | Discovered new exit (range 4) 913 | -10/Materials | Discovered new exit (range 16) 1324 | -10/Materials | Repaired Lgt. Treads 1345 | -10/Materials | Entered Mines 1347 | -10/Mines | Followed 8R-AWN into the Mines 1451 | -10/Mines | Discovered new exit (range 5) 1566 | -10/Mines | Discovered new exit (range 5) 1578 | -10/Mines | Met a Derelict shopkeep closing up shop 1586 | -10/Mines | Learned location of Storage (-7) 1728 | -10/Mines | Assembled infested the area 1733 | -10/Mines | Assisted by a Guerilla fighting off Assembled 1765 | -10/Mines | A weapon hastily lodged in a ceiling crevice suddenly fell to the ground 2250 | -10/Mines | Lost 3 parts (1p1u1w) 2252 | -10/Mines | Core integrity fell below 50% 2282 | -10/Mines | Entered Exiles 2339 | -10/Exiles | Welcomed by 8R-AWN 2370 | -10/Exiles | Met EX-HEX 2461 | -10/Exiles | Met EX-BIN 2492 | -10/Exiles | Aligned with FarCom system 2494 | -10/Exiles | Given EX-Vault access code 2672 | -10/Exiles | Met EX-DEC 2795 | -10/Exiles | Visited The Gauntlet 3069 | -10/Exiles | Learned location of Zion (-7) 3190 | -10/Exiles | Discovered new exit (range 10) 3379 | -10/Exiles | Opened EX-Vault 3392 | -10/Exiles | Found Prototype Energy Cannon 3394 | -10/Exiles | Identified Firepult 3413 | -10/Exiles | Attacked by the Exiles 3440 | -10/Exiles | Found Prototype Energy Cannon 3441 | -10/Exiles | Identified Latent Energy Streamer 3457 | -10/Exiles | Core integrity fell below 20% 3465 | -10/Exiles | Destroyed by as-87784 with Assembled F-torch Last Messages --------------- 03413_ EXILES: Hostile robot within lab perimeter. Defensive protocols time, folks! 03440_ Acquired Prototype Energy Cannon. 03441_ Dropped Firepult. 03441_ Identified Latent Energy Streamer. 03442_ as-01411 destroyed. 03445_ Dropped Melee Analysis Suite. 03445_ Acquired Firepult. 03447_ as-76834 destroyed. 03448_ as-93552 heat damages Asb. Hover Unit. 03451_ Ion Engine destroyed. 03451_ System corrupted by crushing effect (+5). 03454_ Titanium Leg destroyed. 03455_ Seismic Detector destroyed. 03455_ System corrupted by crushing effect (+2). 03457_ as-93552 destroyed. 03457_ Destroyed Asb. Hover Unit. 03457_ HEX's Workstation disabled. 03459_ Acquired 18 matter. 03462_ Aluminum Leg destroyed. Map ----- +----------------------------------------------------+ | | | | | | | | | | | | | | | | | | | | | | | | | | | | | | | | | | | | | | | | | | | ??????????????????????????###????????????????????? | | ???????????????????????#### ####?????????????????? | | ???????????????????????# a! #?????????????????? | | ???????????????????????# ][ #?????????????????? | | ???????????????????????# @ #?????????????????? | | ???????????????????????## ##?????????????????? | | ???????????????????????# a ;#?????????????????? | | ???????????????????????## #????????????????? | | ????????????????????????# ###????????????????? | | ????????????????????????# ;#######??????????? | | ????????????????????????# """"""#??????????? | | ????????????????????????# """#??????????? | | ????????????????????????# X""#??????????? | | ????????????????????????# """#??????????? | | ????????????????######### % """#??????????? | | ????????????????#""""""## #######??????????? | | ????????????????#"""" ## ###????????????????? | | ????????????????#""X" #??????????????????? | | ????????????????#" a#??????????????????? | | ????????????????#" ## #??????????????????? | | ????????????????#""""""## #?#########????????? | | ????????????????##"###### #?#"""""""#????????? | | ???????????????? "?????# #?#"""""""#????????? | | ???????????????"""??????# #?#"""""""#????????? | | ???????????????"""?????## ###"" """"#????????? | | ???????????????????????#" """"#????????? | | ???????????????????????#" """#????????? | | ???????????????????????#" """#????????? | | ???????????????????????#" """#????????? | +----------------------------------------------------+ Best States ------------- Heat Dissipation 25 Energy Generation 18 Energy Capacity 310 Matter Stores 300 Matter Capacity 300 Sight Range 18 Terrain Scan Density 10 Evasion (%) 50 Recoil Reduction 2 Item Schematics ----------------- None Robot Schematics ------------------ None Fabricated ------------ Nothing Repaired ---------- Lgt. Treads | 21% | -10/Materials Alien Tech Used ----------------- None Achievements -------------- Librarian Challenges ------------ None Game ------ Seed AssaultSurveybotCyclogen Manual? 0 Play Time 00:41:26 Cumulative 4.4 hours Start 2025.05.12 @ 23:45:42 End 2025.05.13 @ 00:27:43 Sessions 1 Manual Loads 0 Difficulty Rogue Special Mode None Game No. 4 Rogue 4 Adventurer 0 Explorer 0 Win Type - Total 0 Types 0/0/0/0/0/0/0/0/0/0 Lore% 7 Gallery% 6 Achievement% 9 Wizard Run 0 Options --------- Layout 1 ASCII 0 Keyboard 0 Movement Mouse Keybinds 0 Fullscreen 1 Font 24/Smallcaps Map View 50x35 Zoom Use 0% Tactical HUD 1 Map Filters NONE Filters NONE Steam 1 RUN: d89eb845-564c-426a-824a-a4f5ed8dee0e